[Event "*** Titled Tuesday Blitz"]
[Site "Chess.com"]
[Date "2020.04.07"]
[Round "5"]
[White "Evgeny81"]
[Black "Indianlad"]
[Result "1/2-1/2"]
[WhiteElo "2773"]
[BlackElo "3004"]
[TimeControl "180+1"]
[EndTime "14:00:09 PDT"]
[Termination "Game drawn by repetition"]

1. d4 {[%clk 0:03:00.9]} 1... g6 {[%clk 0:02:59.6]} 2. c4 {[%clk 0:03:00.3]}
2... Nf6 {[%clk 0:02:58.2]} 3. Nc3 {[%clk 0:02:59.1]} 3... d5 {[%clk 0:02:58.3]}
4. e3 {[%clk 0:02:58.8]} 4... Bg7 {[%clk 0:02:58.4]} 5. Qb3 {[%clk 0:02:59.4]}
5... c6 {[%clk 0:02:58.1]} 6. Nf3 {[%clk 0:02:58.6]} 6... O-O {[%clk 0:02:58.7]}
7. Be2 {[%clk 0:02:58.8]} 7... a5 {[%clk 0:02:59.4]} 8. O-O {[%clk 0:02:58.1]}
8... dxc4 {[%clk 0:02:58.1]} 9. Bxc4 {[%clk 0:02:57]} 9... b5 {[%clk 0:02:58.7]}
10. Be2 {[%clk 0:02:56.9]} 10... Bf5 {[%clk 0:02:58.8]} 11. Ne5 {[%clk
0:02:48.1]} 11... a4 {[%clk 0:02:55.4]} 12. Qd1 {[%clk 0:02:47.3]} 12... Ne4
{[%clk 0:02:27.9]} 13. Nd3 {[%clk 0:02:42.1]} 13... Nd7 {[%clk 0:02:21.8]} 14.
Bf3 {[%clk 0:02:38.3]} 14... Nxc3 {[%clk 0:02:05.6]} 15. bxc3 {[%clk 0:02:38.2]}
15... Rc8 {[%clk 0:02:06.5]} 16. Ba3 {[%clk 0:02:27.6]} 16... Bxd3 {[%clk
0:02:05.1]} 17. Qxd3 {[%clk 0:02:27.2]} 17... Ne5 {[%clk 0:02:05.8]} 18. Qe2
{[%clk 0:02:24.7]} 18... Nxf3+ {[%clk 0:02:05.8]} 19. Qxf3 {[%clk 0:02:24.7]}
19... Re8 {[%clk 0:02:06.5]} 20. Rfd1 {[%clk 0:02:20.8]} 20... e6 {[%clk
0:02:04.8]} 21. c4 {[%clk 0:02:16.1]} 21... Bf8 {[%clk 0:02:04.2]} 22. Bxf8
{[%clk 0:02:11.6]} 22... Rxf8 {[%clk 0:02:02.2]} 23. Rab1 {[%clk 0:02:11.3]}
23... bxc4 {[%clk 0:02:00.1]} 24. Rbc1 {[%clk 0:02:05.6]} 24... Qd5 {[%clk
0:01:51.7]} 25. Qe2 {[%clk 0:01:58.6]} 25... c5 {[%clk 0:01:44]} 26. Rxc4 {[%clk
0:01:51.5]} 26... cxd4 {[%clk 0:01:40.4]} 27. Rcxd4 {[%clk 0:01:48.1]} 27... Qa5
{[%clk 0:01:40.4]} 28. Qg4 {[%clk 0:01:39.8]} 28... a3 {[%clk 0:01:39.6]} 29.
Ra4 {[%clk 0:01:34]} 29... Qc3 {[%clk 0:01:38.3]} 30. Qd4 {[%clk 0:01:01.4]}
30... Rfd8 {[%clk 0:01:16]} 31. Qxd8+ {[%clk 0:01:00.3]} 31... Rxd8 {[%clk
0:01:16.9]} 32. Rxd8+ {[%clk 0:01:00.9]} 32... Kg7 {[%clk 0:01:17.8]} 33. Rd1
{[%clk 0:00:45.9]} 33... Qc2 {[%clk 0:01:17.5]} 34. Rad4 {[%clk 0:00:46.2]}
34... Qxa2 {[%clk 0:01:18]} 35. R4d2 {[%clk 0:00:43.8]} 35... Qb3 {[%clk
0:01:18.1]} 36. Ra1 {[%clk 0:00:43.4]} 36... h5 {[%clk 0:01:16]} 37. h4 {[%clk
0:00:42.3]} 37... Qb4 {[%clk 0:01:15.6]} 38. Rda2 {[%clk 0:00:38.5]} 38... Qxh4
{[%clk 0:01:15.6]} 39. Rxa3 {[%clk 0:00:38.9]} 39... Qg4 {[%clk 0:01:14.7]} 40.
Ra4 {[%clk 0:00:38.9]} 40... Qg5 {[%clk 0:01:15]} 41. Rf4 {[%clk 0:00:36.5]}
41... e5 {[%clk 0:01:14.8]} 42. Rc4 {[%clk 0:00:35.8]} 42... h4 {[%clk
0:01:12.5]} 43. Raa4 {[%clk 0:00:34.2]} 43... h3 {[%clk 0:01:09.8]} 44. Rg4
{[%clk 0:00:34.2]} 44... Qh5 {[%clk 0:01:09.5]} 45. gxh3 {[%clk 0:00:29.3]}
45... Qxh3 {[%clk 0:01:10.4]} 46. Rg3 {[%clk 0:00:29.7]} 46... Qh5 {[%clk
0:01:10.2]} 47. Kg2 {[%clk 0:00:28]} 47... Qd1 {[%clk 0:01:08.9]} 48. Rag4
{[%clk 0:00:27.9]} 48... Qd5+ {[%clk 0:01:08.2]} 49. e4 {[%clk 0:00:27.5]} 49...
Qd2 {[%clk 0:01:08.2]} 50. Kg1 {[%clk 0:00:27.3]} 50... Qe2 {[%clk 0:01:05.3]}
51. Kg2 {[%clk 0:00:27.3]} 51... Kf6 {[%clk 0:01:04.4]} 52. Rf3+ {[%clk
0:00:26.3]} 52... Ke6 {[%clk 0:01:04.5]} 53. Rfg3 {[%clk 0:00:26.4]} 53... Qd1
{[%clk 0:01:04.4]} 54. Kh2 {[%clk 0:00:25.9]} 54... Qf1 {[%clk 0:01:03.6]} 55.
Rf3 {[%clk 0:00:25.4]} 55... Ke7 {[%clk 0:01:02.4]} 56. Rg5 {[%clk 0:00:24.3]}
56... Qe2 {[%clk 0:01:01.4]} 57. Rxe5+ {[%clk 0:00:22.9]} 57... Kd6 {[%clk
0:01:01.8]} 58. Rd5+ {[%clk 0:00:22.8]} 58... Ke6 {[%clk 0:01:02.4]} 59. Rdd3
{[%clk 0:00:19.9]} 59... g5 {[%clk 0:01:02.6]} 60. Rde3 {[%clk 0:00:19.8]} 60...
Qf1 {[%clk 0:01:00.8]} 61. Rf5 {[%clk 0:00:15.7]} 61... g4 {[%clk 0:00:56.6]}
62. Rg3 {[%clk 0:00:14.6]} 62... Qe2 {[%clk 0:00:56.2]} 63. Rf4 {[%clk
0:00:14.9]} 63... f6 {[%clk 0:00:49.6]} 64. Rgxg4 {[%clk 0:00:15]} 64... Qd2
{[%clk 0:00:49.9]} 65. Kg2 {[%clk 0:00:14.9]} 65... Qe2 {[%clk 0:00:50]} 66. Rf3
{[%clk 0:00:14.5]} 66... Ke5 {[%clk 0:00:42.8]} 67. Rf5+ {[%clk 0:00:12.9]}
67... Ke6 {[%clk 0:00:42.9]} 68. Rgf4 {[%clk 0:00:12.3]} 68... Ke7 {[%clk
0:00:38.9]} 69. Rxf6 {[%clk 0:00:12.5]} 69... Qb2 {[%clk 0:00:38.9]} 70. R6f5
{[%clk 0:00:12.6]} 70... Qg7+ {[%clk 0:00:38.6]} 71. Kf3 {[%clk 0:00:12.1]}
71... Qc3+ {[%clk 0:00:38.7]} 72. Kg4 {[%clk 0:00:11.9]} 72... Qc2 {[%clk
0:00:39]} 73. Rf7+ {[%clk 0:00:11.7]} 73... Ke6 {[%clk 0:00:39.1]} 74. R7f6+
{[%clk 0:00:12]} 74... Ke7 {[%clk 0:00:39.6]} 75. Kg3 {[%clk 0:00:11]} 75...
Qc3+ {[%clk 0:00:38.2]} 76. Kg2 {[%clk 0:00:11.1]} 76... Qc2 {[%clk 0:00:37]}
77. R6f5 {[%clk 0:00:11.4]} 77... Qc1 {[%clk 0:00:31.8]} 78. Rh4 {[%clk
0:00:11.2]} 78... Qc4 {[%clk 0:00:28.2]} 79. Rh7+ {[%clk 0:00:09.7]} 79... Ke6
{[%clk 0:00:28.8]} 80. Rh4 {[%clk 0:00:08.8]} 80... Ke7 {[%clk 0:00:29.5]} 81.
Rg4 {[%clk 0:00:08.4]} 81... Qe2 {[%clk 0:00:28.4]} 82. Kg3 {[%clk 0:00:07.9]}
82... Qf1 {[%clk 0:00:28.1]} 83. Rg7+ {[%clk 0:00:07.4]} 83... Ke6 {[%clk
0:00:28.8]} 84. Rg6+ {[%clk 0:00:08]} 84... Ke7 {[%clk 0:00:29.4]} 85. Rg4
{[%clk 0:00:08.3]} 85... Qg1+ {[%clk 0:00:28.9]} 86. Kf3 {[%clk 0:00:08.7]}
86... Qd1+ {[%clk 0:00:29.5]} 87. Kf4 {[%clk 0:00:09.2]} 87... Qd2+ {[%clk
0:00:29.4]} 88. Kg3 {[%clk 0:00:09.4]} 88... Qd1 {[%clk 0:00:30]} 89. f3 {[%clk
0:00:09.3]} 89... Qg1+ {[%clk 0:00:29.8]} 90. Kh4 {[%clk 0:00:08.9]} 90... Qh2+
{[%clk 0:00:29.4]} 91. Kg5 {[%clk 0:00:09.3]} 91... Qh8 {[%clk 0:00:29.5]} 92.
Rgf4 {[%clk 0:00:06.5]} 92... Qg7+ {[%clk 0:00:28.8]} 93. Kh4 {[%clk 0:00:06.8]}
93... Qg2 {[%clk 0:00:29]} 94. Rf7+ {[%clk 0:00:06.2]} 94... Ke6 {[%clk
0:00:29.6]} 95. R7f6+ {[%clk 0:00:06.7]} 95... Ke7 {[%clk 0:00:30.1]} 96. R4f5
{[%clk 0:00:07.2]} 96... Qh2+ {[%clk 0:00:29.6]} 97. Kg4 {[%clk 0:00:07.6]}
97... Qg2+ {[%clk 0:00:30]} 98. Kf4 {[%clk 0:00:08.1]} 98... Qd2+ {[%clk
0:00:30.6]} 99. Kg4 {[%clk 0:00:07.6]} 99... Qg2+ {[%clk 0:00:30.9]} 100. Kh5
{[%clk 0:00:08.3]} 100... Qh2+ {[%clk 0:00:28.6]} 101. Kg6 {[%clk 0:00:08.7]}
101... Qg3+ {[%clk 0:00:22.2]} 102. Rg5 {[%clk 0:00:08.4]} 102... Qh2 {[%clk
0:00:22.3]} 103. f4 {[%clk 0:00:07.6]} 103... Qc2 {[%clk 0:00:21.6]} 104. Re5+
{[%clk 0:00:06.8]} 104... Kd7 {[%clk 0:00:22.3]} 105. Kf7 {[%clk 0:00:06.9]}
105... Qa2+ {[%clk 0:00:22.1]} 106. Ree6 {[%clk 0:00:07.1]} 106... Qh2 {[%clk
0:00:20.7]} 107. Re7+ {[%clk 0:00:07.2]} 107... Kd8 {[%clk 0:00:21.3]} 108. Rd6+
{[%clk 0:00:07.3]} 108... Kc8 {[%clk 0:00:21.5]} 109. Rf6 {[%clk 0:00:02.9]}
109... Qh7+ {[%clk 0:00:21]} 110. Kf8 {[%clk 0:00:02.8]} 110... Qh8+ {[%clk
0:00:21]} 111. Kf7 {[%clk 0:00:02.8]} 111... Qh7+ {[%clk 0:00:21.6]} 112. Ke8
{[%clk 0:00:03.1]} 112... Qg8+ {[%clk 0:00:21.1]} 113. Rf8 {[%clk 0:00:03.4]}
113... Qg6+ {[%clk 0:00:21.7]} 114. Rff7 {[%clk 0:00:03.3]} 114... Qg8+ {[%clk
0:00:22.1]} 115. Rf8 {[%clk 0:00:03.9]} 115... Qg6+ {[%clk 0:00:22.8]} 116. Ref7
{[%clk 0:00:04.4]} 116... Qe6+ {[%clk 0:00:21.4]} 117. Re7 {[%clk 0:00:04.7]}
117... Qg6+ {[%clk 0:00:21.7]} 1/2-1/2

[Event "*** Titled Tuesday Blitz"]
[Site "Chess.com"]
[Date "2020.04.07"]
[Round "6"]
[White "FelixJoseYnojosa"]
[Black "Stameny"]
[Result "0-1"]
[WhiteElo "2626"]
[BlackElo "2539"]
[TimeControl "180+1"]
[EndTime "14:02:20 PDT"]
[Termination "Stameny won by resignation"]

1. e4 {[%clk 0:03:00.8]} 1... c5 {[%clk 0:02:57.2]} 2. c3 {[%clk 0:03:01.3]}
2... Nf6 {[%clk 0:02:55]} 3. e5 {[%clk 0:03:01.7]} 3... Nd5 {[%clk 0:02:55.1]}
4. d4 {[%clk 0:03:02.4]} 4... cxd4 {[%clk 0:02:55.2]} 5. cxd4 {[%clk 0:03:03.1]}
5... d6 {[%clk 0:02:53.6]} 6. f4 {[%clk 0:03:03.3]} 6... Nc6 {[%clk 0:02:52]} 7.
Nf3 {[%clk 0:02:53.6]} 7... dxe5 {[%clk 0:02:45.5]} 8. fxe5 {[%clk 0:02:53.2]}
8... Bf5 {[%clk 0:02:41.7]} 9. Nc3 {[%clk 0:02:53.5]} 9... e6 {[%clk 0:02:40.3]}
10. Bd3 {[%clk 0:02:47.4]} 10... Bb4 {[%clk 0:02:29.7]} 11. Bd2 {[%clk
0:02:29.5]} 11... Bxd3 {[%clk 0:02:27.7]} 0-1

[Event "*** Titled Tuesday Blitz"]
[Site "Chess.com"]
[Date "2020.04.07"]
[Round "6"]
[White "Keranke"]
[Black "Nancy11111"]
[Result "1-0"]
[WhiteElo "2786"]
[BlackElo "2392"]
[TimeControl "180+1"]
[EndTime "14:02:30 PDT"]
[Termination "Keranke won by resignation"]

1. d4 {[%clk 0:03:00.9]} 1... f5 {[%clk 0:02:59.7]} 2. Bg5 {[%clk 0:02:59.9]}
2... h6 {[%clk 0:02:59.1]} 3. Bh4 {[%clk 0:02:59.3]} 3... g5 {[%clk 0:02:59.6]}
4. Bg3 {[%clk 0:02:59.9]} 4... Nf6 {[%clk 0:02:58.8]} 5. e3 {[%clk 0:03:00]}
5... e6 {[%clk 0:02:58]} 6. h4 {[%clk 0:03:00.4]} 6... Rg8 {[%clk 0:02:57.6]} 7.
Nd2 {[%clk 0:02:58.1]} 7... d6 {[%clk 0:02:57]} 8. c3 {[%clk 0:02:57.6]} 8...
Qe7 {[%clk 0:02:56.8]} 9. Bd3 {[%clk 0:02:54]} 9... Nc6 {[%clk 0:02:56.6]} 10.
Qb3 {[%clk 0:02:53.3]} 10... Nh5 {[%clk 0:02:41.2]} 11. Ne2 {[%clk 0:02:35.7]}
11... Nxg3 {[%clk 0:02:37.2]} 12. Nxg3 {[%clk 0:02:35.8]} 12... gxh4 {[%clk
0:02:33.8]} 13. Nxf5 {[%clk 0:02:35.9]} 13... exf5 {[%clk 0:02:15.1]} 14. Qxg8
{[%clk 0:02:34.7]} 14... Be6 {[%clk 0:02:15.4]} 15. Qg6+ {[%clk 0:02:34.3]} 1-0

[Event "*** Titled Tuesday Blitz"]
[Site "Chess.com"]
[Date "2020.04.07"]
[Round "6"]
[White "IMDT02"]
[Black "dmvlad"]
[Result "1-0"]
[WhiteElo "2467"]
[BlackElo "2304"]
[TimeControl "180+1"]
[EndTime "14:02:56 PDT"]
[Termination "IMDT02 won by checkmate"]

1. d4 {[%clk 0:03:00.9]} 1... Nf6 {[%clk 0:02:59]} 2. c4 {[%clk 0:03:00.2]} 2...
g6 {[%clk 0:02:58.5]} 3. Nc3 {[%clk 0:03:00.7]} 3... Bg7 {[%clk 0:02:58.6]} 4.
e4 {[%clk 0:03:01]} 4... d6 {[%clk 0:02:58.9]} 5. f3 {[%clk 0:03:01.5]} 5... O-O
{[%clk 0:02:57.7]} 6. Be3 {[%clk 0:03:02.1]} 6... c5 {[%clk 0:02:48.6]} 7. Nge2
{[%clk 0:02:56.9]} 7... Qa5 {[%clk 0:02:44.8]} 8. Qd2 {[%clk 0:02:55.5]} 8...
Nc6 {[%clk 0:02:41.3]} 9. d5 {[%clk 0:02:55.3]} 9... Ne5 {[%clk 0:02:40.7]} 10.
Ng3 {[%clk 0:02:55.5]} 10... h5 {[%clk 0:02:39.3]} 11. h4 {[%clk 0:02:52.8]}
11... a6 {[%clk 0:02:35.4]} 12. Be2 {[%clk 0:02:49.6]} 12... Rb8 {[%clk
0:02:35.2]} 13. Bh6 {[%clk 0:02:42.2]} 13... b5 {[%clk 0:02:31.3]} 14. Bxg7
{[%clk 0:02:41.8]} 14... Kxg7 {[%clk 0:02:32.2]} 15. cxb5 {[%clk 0:02:41.6]}
15... axb5 {[%clk 0:02:31.2]} 16. O-O {[%clk 0:02:40.5]} 16... b4 {[%clk
0:02:18.7]} 17. Nd1 {[%clk 0:02:39.4]} 17... Ba6 {[%clk 0:02:18.1]} 18. Ne3
{[%clk 0:02:34.6]} 18... Bxe2 {[%clk 0:02:12.4]} 19. Nef5+ {[%clk 0:02:30.8]}
19... Kg8 {[%clk 0:02:05.6]} 20. Qh6 {[%clk 0:02:30.1]} 20... gxf5 {[%clk
0:02:02]} 21. Nxf5 {[%clk 0:02:31]} 21... Ne8 {[%clk 0:02:00.1]} 22. Nxe7#
{[%clk 0:02:31.2]} 1-0

[Event "*** Titled Tuesday Blitz"]
[Site "Chess.com"]
[Date "2020.04.07"]
[Round "6"]
[White "Hanging_pointer"]
[Black "rpragchess"]
[Result "0-1"]
[WhiteElo "2525"]
[BlackElo "2803"]
[TimeControl "180+1"]
[EndTime "14:03:14 PDT"]
[Termination "rpragchess won by resignation"]

1. d4 {[%clk 0:02:57.1]} 1... Nf6 {[%clk 0:02:59.3]} 2. c4 {[%clk 0:02:56.1]}
2... Nc6 {[%clk 0:02:58.9]} 3. Nf3 {[%clk 0:02:55.4]} 3... e6 {[%clk 0:02:55.6]}
4. Nc3 {[%clk 0:02:53]} 4... Bb4 {[%clk 0:02:53.1]} 5. Qc2 {[%clk 0:02:52.8]}
5... d6 {[%clk 0:02:51.5]} 6. Bg5 {[%clk 0:02:52]} 6... h6 {[%clk 0:02:50.2]} 7.
Bxf6 {[%clk 0:02:48.4]} 7... Qxf6 {[%clk 0:02:49.6]} 8. e3 {[%clk 0:02:49.3]}
8... e5 {[%clk 0:02:46.2]} 9. d5 {[%clk 0:02:47]} 9... Bxc3+ {[%clk 0:02:45.8]}
10. Qxc3 {[%clk 0:02:44.9]} 10... Ne7 {[%clk 0:02:42.9]} 11. Be2 {[%clk
0:02:43.5]} 11... O-O {[%clk 0:02:41.9]} 12. O-O {[%clk 0:02:42.5]} 12... Bg4
{[%clk 0:02:39.2]} 13. Qc2 {[%clk 0:02:36.6]} 13... Ng6 {[%clk 0:02:32.6]} 14.
h3 {[%clk 0:02:33.4]} 14... Bf5 {[%clk 0:02:30.1]} 15. Bd3 {[%clk 0:02:31.4]}
15... Bxh3 {[%clk 0:02:28.5]} 16. Be4 {[%clk 0:02:04.5]} 16... Bd7 {[%clk
0:02:22.4]} 17. g3 {[%clk 0:02:00.8]} 17... Qe7 {[%clk 0:02:18.7]} 18. Kg2
{[%clk 0:01:50.2]} 18... f5 {[%clk 0:02:17.7]} 0-1

[Event "*** Titled Tuesday Blitz"]
[Site "Chess.com"]
[Date "2020.04.07"]
[Round "6"]
[White "fmshawnrl123"]
[Black "Paralinch"]
[Result "0-1"]
[WhiteElo "2727"]
[BlackElo "2933"]
[TimeControl "180+1"]
[EndTime "14:03:40 PDT"]
[Termination "Paralinch won by resignation"]

1. c4 {[%clk 0:03:00.9]} 1... c5 {[%clk 0:02:59]} 2. g3 {[%clk 0:02:58.3]} 2...
Nc6 {[%clk 0:02:58.9]} 3. Bg2 {[%clk 0:02:52.7]} 3... g6 {[%clk 0:02:59.4]} 4.
Nc3 {[%clk 0:02:50.7]} 4... Bg7 {[%clk 0:02:59.4]} 5. e4 {[%clk 0:02:50.9]} 5...
e6 {[%clk 0:02:59.2]} 6. Nge2 {[%clk 0:02:51.4]} 6... Nge7 {[%clk 0:02:59.5]} 7.
O-O {[%clk 0:02:49.1]} 7... O-O {[%clk 0:02:59.9]} 8. d3 {[%clk 0:02:49.1]} 8...
Nd4 {[%clk 0:02:57.8]} 9. Be3 {[%clk 0:02:47.9]} 9... Nec6 {[%clk 0:02:57]} 10.
a3 {[%clk 0:02:46.6]} 10... d6 {[%clk 0:02:52]} 11. Rb1 {[%clk 0:02:44.6]} 11...
a5 {[%clk 0:02:51.5]} 12. Nb5 {[%clk 0:02:31.3]} 12... a4 {[%clk 0:02:43.9]} 13.
Nec3 {[%clk 0:02:22.4]} 13... Nxb5 {[%clk 0:02:38.4]} 14. cxb5 {[%clk 0:02:18]}
14... Nd4 {[%clk 0:02:36.8]} 15. Nxa4 {[%clk 0:01:57.4]} 15... Nxb5 {[%clk
0:02:34.6]} 16. Qc2 {[%clk 0:01:56.4]} 16... Qa5 {[%clk 0:02:31.6]} 17. Nc3
{[%clk 0:01:39.4]} 17... Bxc3 {[%clk 0:02:30.7]} 18. bxc3 {[%clk 0:01:39.7]}
18... Nxa3 {[%clk 0:02:30.6]} 19. Qd2 {[%clk 0:01:36.5]} 19... Nxb1 {[%clk
0:02:30.6]} 20. Rxb1 {[%clk 0:01:37.3]} 20... Qa2 {[%clk 0:02:30.4]} 21. Rb2
{[%clk 0:01:34.7]} 21... Qa1+ {[%clk 0:02:30.1]} 22. Bf1 {[%clk 0:01:35.2]}
22... e5 {[%clk 0:02:28.5]} 23. Bh6 {[%clk 0:01:32.8]} 23... Bh3 {[%clk
0:02:22.9]} 0-1

[Event "*** Titled Tuesday Blitz"]
[Site "Chess.com"]
[Date "2020.04.07"]
[Round "6"]
[White "Quiet_Desperation"]
[Black "Eloist"]
[Result "0-1"]
[WhiteElo "2038"]
[BlackElo "2264"]
[TimeControl "180+1"]
[EndTime "14:04:09 PDT"]
[Termination "Eloist won by resignation"]

1. d4 {[%clk 0:03:00.9]} 1... e6 {[%clk 0:02:59.9]} 2. e4 {[%clk 0:02:58.8]}
2... d5 {[%clk 0:02:59.3]} 3. Nc3 {[%clk 0:02:59.2]} 3... Nf6 {[%clk 0:02:59.2]}
4. e5 {[%clk 0:02:59.6]} 4... Nfd7 {[%clk 0:02:59]} 5. f4 {[%clk 0:02:59.9]}
5... c5 {[%clk 0:02:59]} 6. Nf3 {[%clk 0:03:00.3]} 6... Nc6 {[%clk 0:02:59.1]}
7. Be3 {[%clk 0:02:59.9]} 7... a6 {[%clk 0:02:58.6]} 8. Qd2 {[%clk 0:02:59.7]}
8... b5 {[%clk 0:02:58.7]} 9. Be2 {[%clk 0:02:59.5]} 9... Qb6 {[%clk 0:02:57.9]}
10. O-O {[%clk 0:02:59.3]} 10... cxd4 {[%clk 0:02:49.3]} 11. Nxd4 {[%clk
0:02:58.7]} 11... Bc5 {[%clk 0:02:48.9]} 12. Rad1 {[%clk 0:02:57.2]} 12... O-O
{[%clk 0:02:48]} 13. Kh1 {[%clk 0:02:56.3]} 13... f6 {[%clk 0:02:44.8]} 14. Bg1
{[%clk 0:02:45.4]} 14... Bxd4 {[%clk 0:02:32.8]} 15. Bxd4 {[%clk 0:02:38.2]}
15... Nxd4 {[%clk 0:02:31.8]} 16. Qxd4 {[%clk 0:02:38]} 16... Qxd4 {[%clk
0:02:31.4]} 17. Rxd4 {[%clk 0:02:38.9]} 17... fxe5 {[%clk 0:02:31]} 18. fxe5
{[%clk 0:02:36.3]} 18... Rxf1+ {[%clk 0:02:27]} 19. Bxf1 {[%clk 0:02:37.2]}
19... Nxe5 {[%clk 0:02:26.7]} 20. a3 {[%clk 0:02:31.7]} 20... Bd7 {[%clk
0:02:16.7]} 21. Rf4 {[%clk 0:02:20]} 21... Rf8 {[%clk 0:02:14.6]} 22. Rxf8+
{[%clk 0:02:19]} 22... Kxf8 {[%clk 0:02:15.5]} 23. Kg1 {[%clk 0:02:19.2]} 23...
Nc4 {[%clk 0:02:11.4]} 24. Bxc4 {[%clk 0:02:18.1]} 24... bxc4 {[%clk 0:02:12.3]}
25. Kf2 {[%clk 0:02:17.5]} 25... Ke7 {[%clk 0:02:11]} 26. Ke3 {[%clk 0:02:17.7]}
26... Kd6 {[%clk 0:02:10.9]} 27. Ne2 {[%clk 0:02:17.1]} 27... e5 {[%clk
0:02:10.1]} 28. c3 {[%clk 0:02:17.6]} 28... Bf5 {[%clk 0:02:05.1]} 29. Ng3
{[%clk 0:02:14.9]} 29... Bg6 {[%clk 0:02:04.4]} 30. Ne2 {[%clk 0:02:11.3]} 30...
Kc5 {[%clk 0:02:02.6]} 31. g3 {[%clk 0:02:08.9]} 31... Bd3 {[%clk 0:02:01.6]}
32. Nc1 {[%clk 0:02:08.7]} 32... Bf1 {[%clk 0:02:00.9]} 33. Kf2 {[%clk
0:02:08.1]} 33... Bh3 {[%clk 0:02:00.5]} 34. Ne2 {[%clk 0:02:07.4]} 34... d4
{[%clk 0:01:59.2]} 35. Nc1 {[%clk 0:02:04.6]} 35... Kd5 {[%clk 0:01:56.5]} 36.
Na2 {[%clk 0:02:03.9]} 36... a5 {[%clk 0:01:55.7]} 37. Nc1 {[%clk 0:02:03.3]}
37... Ke4 {[%clk 0:01:52.1]} 0-1

[Event "*** Titled Tuesday Blitz"]
[Site "Chess.com"]
[Date "2020.04.07"]
[Round "6"]
[White "Indianlad"]
[Black "VladimirBelous"]
[Result "1-0"]
[WhiteElo "3007"]
[BlackElo "2759"]
[TimeControl "180+1"]
[EndTime "14:04:18 PDT"]
[Termination "Indianlad won by resignation"]

1. d4 {[%clk 0:03:00.9]} 1... c5 {[%clk 0:03:00.2]} 2. d5 {[%clk 0:03:00.4]}
2... g6 {[%clk 0:03:00.8]} 3. Nc3 {[%clk 0:03:00.7]} 3... Bg7 {[%clk 0:03:01.1]}
4. e4 {[%clk 0:03:01.6]} 4... d6 {[%clk 0:03:00.5]} 5. Nf3 {[%clk 0:03:02.3]}
5... Nf6 {[%clk 0:03:00.7]} 6. Bb5+ {[%clk 0:03:02.9]} 6... Bd7 {[%clk
0:03:00.6]} 7. a4 {[%clk 0:03:03.6]} 7... O-O {[%clk 0:03:00.8]} 8. O-O {[%clk
0:03:04]} 8... Bxb5 {[%clk 0:03:01.4]} 9. axb5 {[%clk 0:03:04.1]} 9... Nbd7
{[%clk 0:03:01.7]} 10. h3 {[%clk 0:03:04.8]} 10... Nb6 {[%clk 0:02:50.4]} 11.
Re1 {[%clk 0:03:04.4]} 11... Ne8 {[%clk 0:02:49.9]} 12. Bf4 {[%clk 0:03:04.5]}
12... Nc7 {[%clk 0:02:49.3]} 13. Qd3 {[%clk 0:03:03.4]} 13... Bxc3 {[%clk
0:02:49.2]} 14. bxc3 {[%clk 0:03:01.2]} 14... f6 {[%clk 0:02:49.2]} 15. c4
{[%clk 0:03:01]} 15... a6 {[%clk 0:02:47.8]} 16. bxa6 {[%clk 0:03:00.7]} 16...
Rxa6 {[%clk 0:02:48.7]} 17. h4 {[%clk 0:02:57.5]} 17... Nd7 {[%clk 0:02:43.4]}
18. Bh6 {[%clk 0:02:54.6]} 18... Rf7 {[%clk 0:02:35.2]} 19. Rxa6 {[%clk
0:02:52.4]} 19... Nxa6 {[%clk 0:02:33.8]} 20. Rb1 {[%clk 0:02:52.1]} 20... Qc7
{[%clk 0:02:19.1]} 21. Qb3 {[%clk 0:02:51.5]} 21... b6 {[%clk 0:02:18.9]} 22.
Qa4 {[%clk 0:02:51.1]} 22... Nab8 {[%clk 0:02:12.5]} 23. Qa8 {[%clk 0:02:50.3]}
23... Ne5 {[%clk 0:01:40.5]} 24. Ra1 {[%clk 0:02:50.7]} 24... Nxf3+ {[%clk
0:01:23.8]} 25. gxf3 {[%clk 0:02:47.6]} 25... e5 {[%clk 0:01:17.2]} 26. dxe6
{[%clk 0:02:47.9]} 26... Re7 {[%clk 0:01:17.3]} 27. Qd5 {[%clk 0:02:46.6]} 27...
Nc6 {[%clk 0:01:01.5]} 28. Ra8+ {[%clk 0:02:34.8]} 28... Nd8 {[%clk 0:00:55.8]}
29. Qb7 {[%clk 0:02:34.8]} 1-0

[Event "*** Titled Tuesday Blitz"]
[Site "Chess.com"]
[Date "2020.04.07"]
[Round "6"]
[White "Kavyev_Ruslan"]
[Black "Agent-JL"]
[Result "1-0"]
[WhiteElo "2616"]
[BlackElo "2426"]
[TimeControl "180+1"]
[EndTime "14:04:28 PDT"]
[Termination "Kavyev_Ruslan won by resignation"]

1. d4 {[%clk 0:03:00.9]} 1... Nf6 {[%clk 0:02:59.9]} 2. c4 {[%clk 0:03:01.1]}
2... e6 {[%clk 0:02:59.6]} 3. Nf3 {[%clk 0:03:00.4]} 3... d5 {[%clk 0:02:54.4]}
4. g3 {[%clk 0:02:59.3]} 4... Bb4+ {[%clk 0:02:54.3]} 5. Bd2 {[%clk 0:02:58.7]}
5... Bxd2+ {[%clk 0:02:53.2]} 6. Nbxd2 {[%clk 0:02:59.6]} 6... O-O {[%clk
0:02:53.4]} 7. Bg2 {[%clk 0:03:00.1]} 7... b6 {[%clk 0:02:52.1]} 8. cxd5 {[%clk
0:02:59.3]} 8... exd5 {[%clk 0:02:50.9]} 9. O-O {[%clk 0:02:59.7]} 9... Bb7
{[%clk 0:02:50.3]} 10. Rc1 {[%clk 0:03:00.1]} 10... Qe7 {[%clk 0:02:50.6]} 11.
Nb1 {[%clk 0:03:00.1]} 11... Ne4 {[%clk 0:02:41.2]} 12. Nc3 {[%clk 0:02:58.4]}
12... Nd7 {[%clk 0:02:27]} 13. e3 {[%clk 0:02:55.9]} 13... Rfc8 {[%clk
0:02:18.3]} 14. Qb3 {[%clk 0:02:52.1]} 14... Ndf6 {[%clk 0:02:11.7]} 15. Rfd1
{[%clk 0:02:49.8]} 15... Nxc3 {[%clk 0:02:02.3]} 16. bxc3 {[%clk 0:02:45.9]}
16... Ne4 {[%clk 0:02:01.2]} 17. Ne5 {[%clk 0:02:45.7]} 17... Kf8 {[%clk
0:01:30.6]} 18. c4 {[%clk 0:02:45.1]} 18... f6 {[%clk 0:01:28.6]} 19. cxd5
{[%clk 0:02:43.6]} 19... Nxf2 {[%clk 0:01:12.2]} 20. Rf1 {[%clk 0:02:43.4]}
20... fxe5 {[%clk 0:00:56.4]} 21. Rxf2+ {[%clk 0:02:42.9]} 21... Ke8 {[%clk
0:00:51.3]} 22. Qa4+ {[%clk 0:02:42.7]} 22... Kd8 {[%clk 0:00:41]} 23. Rcf1
{[%clk 0:02:42.4]} 23... c6 {[%clk 0:00:27.5]} 24. Rf8+ {[%clk 0:02:41.8]} 1-0